Workbook

Sheet Eingabe Email
A1: Emailadresse eingeben: | B1: =strcode(A2) -> 5999
A2: stxxyyyy@stud.h-da.de | B2: =prnd(B1) -> 272087
B3: =prnd(B2) -> 1103626
B4: =prnd(B3) -> 619092
B5: 1040706
B6: 1030009
B7: 826773
B8: 866190
B9: 795932
B10: 583982
B11: 939709
B12: 562575
B13: 529831
B14: 1048726
B15: 531871
B16: 283517
B17: 199219
B18: 207856
B19: 1171061
B20: 91416
B21: 556628
B22: 271406
B23: 925204
B24: 661332
B25: 410385
B26: 946410
B27: 1018548
B28: 423369
B29: 449151
B30: 705590
B31: 308780
B32: 319680
B33: 576102
B34: 174838
B35: 318479
B36: 261440
B37: 913490
B38: 191642
B39: 822060
B40: 931073
B41: 899321
B42: 378431
B43: 372596
B44: 143515
B45: 1209676
B46: 1110723
B47: 1178817
B48: 823799
B49: 87002
B50: 699849
B51: 104327
B52: 40243
B53: 146192
B54: 611361
B55: 314873
B56: 616357
B57: 324136
B58: 443885
B59: 625587
B60: 143018
B61: 1079462
B62: 786569
B63: 730254
B64: 272303
B65: 1160218
B66: 1149617
B67: 971533
B68: =prnd(B67) -> 1102329
B69: 279278
B70: 388290
B71: 356276
B72: 1066431
B73: 1271514
B74: 416322
B75: 1202215
B76: 455630
B77: 1103399
B78: 559618
B79: 1054786
B80: 819902
B81: 365677
B82: 930115
B83: 648325
B84: 901618
B85: 980245
B86: 785495
B87: 448866
B88: 630920
B89: 240575
B90: 645616
B91: 191860
B92: 879176
B93: 299197
B94: 408312
B95: 403284
B96: 385637
B97: 960879
B98: 910359
B99: 671009
B100: 346381
B101: 1073319
B102: 476792
B103: 149398
B104: 151644
B105: 740096
B106: 251529
B107: 916186
B108: 897994
B109: 30757
B110: 260238
B111: 598566
B112: 861650
B113: 906141
B114: 865582
B115: 636636
B116: 438478
B117: 508642
B118: 695964
B119: 386146
B120: 1094237
B121: 758552
B122: 1187934
B123: 613075
B124: 763941
B125: 474
B126: 124226
B127: 55025
B128: 120009
B129: 249860
B130: 478908
B131: 703790
B132: =prnd(B131) -> 1136869
B133: 230935
B134: 719314
B135: 5401
B136: 115411
B137: 344873
B138: 678223
B139: 936760
B140: 1089626
B141: 850159
B142: 494877
B143: 988601
B144: 375389
B145: 875281
B146: 578396
B147: 775866
B148: 525446
B149: 1199545
B150: 1055779
B151: 1080068
B152: 945341
B153: 738470
B154: 1125206
B155: 1074296
B156: 732766
B157: 930447
B158: 735309
B159: 297024
B160: 1138675
B161: 704107
B162: 1219923
B163: 1196059
B164: 142447
B165: 929860
B166: 581515
B167: 293355
B168: 177397
B169: 988937
B170: 463421
B171: 545263
B172: 1192843
B173: 599544
B174: 1117886
B175: 456145
B176: 1238329
B177: 819675
B178: 306203
B179: 944195
B180: 438218
B181: 440522
B182: 1044170
B183: 637888
B184: 766502
B185: 671456
B186: 463495
B187: 564651
B188: 1073743
B189: 587880
B190: 661296
B191: 400953
B192: 1074604
B193: 813462
B194: 1277775
B195: 757015
B196: =prnd(B195) -> 785240
B197: 382056
B198: 22657
B199: 737416
B200: 849058
... 9800 more rows

Sheet Aufg1
A1: Nominal | B1: =_xlfn.NORM.INV(('Eingabe Email'!$B100)/MAX('Eingabe Email'!$B:$B),100,7.5) -> 95.32552161 | C1: =_xlfn.NORM.INV(('Eingabe Email'!$B101)/MAX('Eingabe Email'!$B:$B),100,7.5) -> 107.0375966 | D1: =_xlfn.NORM.INV(('Eingabe Email'!$B102)/MAX('Eingabe Email'!$B:$B),100,7.5) -> 97.44968928 | E1: =_xlfn.NORM.INV(('Eingabe Email'!$B103)/MAX('Eingabe Email'!$B:$B),100,7.5) -> 90.99608783 | F1: =_xlfn.NORM.INV(('Eingabe Email'!$B104)/MAX('Eingabe Email'!$B:$B),100,7.5) -> 91.06253138 | G1: =_xlfn.NORM.INV(('Eingabe Email'!$B105)/MAX('Eingabe Email'!$B:$B),100,7.5) -> 101.3139628
A2: Laufzeit | B2: 1 | C2: 2 | D2: 3 | E2: 4 | F2: 5 | G2: 6
A3: Kuponzins | B3: =_xlfn.NORM.INV(('Eingabe Email'!$B166)/MAX('Eingabe Email'!$B:$B),0.4,0.01) -> 0.3986802409 | C3: =_xlfn.NORM.INV(('Eingabe Email'!$B167)/MAX('Eingabe Email'!$B:$B),0.74,0.02) -> 0.7249416489 | D3: =_xlfn.NORM.INV(('Eingabe Email'!$B168)/MAX('Eingabe Email'!$B:$B),0.93,0.02) -> 0.9080777605 | E3: =_xlfn.NORM.INV(('Eingabe Email'!$B169)/MAX('Eingabe Email'!$B:$B),1.12,0.01) -> 1.12709623 | F3: =_xlfn.NORM.INV(('Eingabe Email'!$B170)/MAX('Eingabe Email'!$B:$B),1.31,0.02) -> 1.302650002 | G3: =_xlfn.NORM.INV(('Eingabe Email'!$B171)/MAX('Eingabe Email'!$B:$B),1.68,0.03) -> 1.673912812

Sheet Aufg2
A1: S0 | B1: =_xlfn.NORM.INV(('Eingabe Email'!$B100)/MAX('Eingabe Email'!$B:$B),100,7.5) -> 95.32552161
A2: K | B2: =_xlfn.NORM.INV(('Eingabe Email'!$B101)/MAX('Eingabe Email'!$B:$B),100,7.5) -> 107.0375966
A3: mu | B3: =_xlfn.NORM.INV(('Eingabe Email'!$B102)/MAX('Eingabe Email'!$B:$B),0.05,0.003) -> 0.04897987571
A4: sigma | B4: =_xlfn.NORM.INV(('Eingabe Email'!$B103)/MAX('Eingabe Email'!$B:$B),0.285,0.01) -> 0.2729947838
A5: Laufzeit (Tage) | B5: =ROUND(_xlfn.NORM.INV(('Eingabe Email'!$B104)/MAX('Eingabe Email'!$B:$B),365,20),0) -> 341

Sheet Aufg3
A1: S0 | B1: =_xlfn.NORM.INV(('Eingabe Email'!$B211)/MAX('Eingabe Email'!$B:$B),100,7.5) -> 98.5577927
A2: K | B2: =_xlfn.NORM.INV(('Eingabe Email'!$B212)/MAX('Eingabe Email'!$B:$B),100,7.5) -> 80.85846557
A3: mu | B3: =_xlfn.NORM.INV(('Eingabe Email'!$B213)/MAX('Eingabe Email'!$B:$B),0.03,0.003) -> 0.02925650563
A4: sigma | B4: =_xlfn.NORM.INV(('Eingabe Email'!$B103)/MAX('Eingabe Email'!$B:$B),0.35,0.01) -> 0.3379947838
A5: Laufzeit (Tage) | B5: =ROUND(_xlfn.NORM.INV(('Eingabe Email'!$B214)/MAX('Eingabe Email'!$B:$B),380,20),0) -> 372
